fUST/lending_fUST_20250707
["ID","MTS","AMOUNT","RATE_DAILY","PERIOD"]
[370118022,1751892646577,-957.0,0.00019644,2]
[370118024,1751892646586,-957.0,0.00019671,2]
[370118026,1751892646596,-957.0,0.00019699,2]
[370118028,1751892646605,-1000.0,0.00019721,2]
[370118030,1751892646614,-1024.06599004,0.00019721,2]
[370118032,1751892646623,-207.94613675,0.00019725,2]
[370118034,1751892646632,-180.59514429,0.00019725,2]
[370118036,1751892646641,-957.0,0.00019726,2]
[370118038,1751892646650,-153.83938,0.00019726,2]
[370118040,1751892646659,-461.34427672,0.00019726,2]
[370118042,1751892646669,-460.0,0.00019726,2]
[370118044,1751892646678,-386.13983266,0.00019726,2]
[370118046,1751892646687,-460.0,0.00019726,2]
[370118048,1751892646696,-460.0,0.00019726,2]
[370118050,1751892646706,-460.0,0.00019726,2]
[370118052,1751892646715,-460.0,0.00019726,2]
[370118054,1751892646724,-460.0,0.00019726,2]
[370118056,1751892646734,-203.23266209,0.00019726,2]
[370118058,1751892646744,-460.0,0.00019726,2]
[370118060,1751892646753,-460.0,0.00019726,2]
[370118062,1751892646763,-460.0,0.00019726,2]
[370118063,1751892646772,-460.0,0.00019726,2]
[370118064,1751892646781,-460.0,0.00019726,2]
[370118065,1751892646790,-460.0,0.00019726,2]
[370118066,1751892646799,-462.31020279,0.00019726,2]
[370118067,1751892646809,-460.0,0.00019726,2]
[370118068,1751892646818,-460.0,0.00019726,2]
[370118069,1751892646827,-460.0,0.00019726,2]
[370118070,1751892646837,-460.0,0.00019726,2]
[370118071,1751892646846,-460.0,0.00019726,2]
[370118072,1751892646855,-319.52,0.00019726,2]
[370118073,1751892646864,-347.52215432,0.00019726,2]
[370118074,1751892646873,-460.0,0.00019726,2]
[370118075,1751892646882,-439.5,0.00019726,2]
[370118076,1751892646891,-460.0,0.00019726,2]
[370118077,1751892646900,-460.0,0.00019726,2]
[370118078,1751892646909,-1118.01,0.00019726,2]
[370118079,1751892646918,-460.0,0.00019726,2]
[370118080,1751892646928,-460.0,0.00019726,2]
[370118081,1751892646937,-460.0,0.00019726,2]
[370118082,1751892646946,-460.0,0.00019726,2]
[370118083,1751892646955,-460.0,0.00019726,2]
[370118084,1751892646964,-1494.48,0.00019726,2]
[370118085,1751892646974,-460.0,0.00019726,2]
[370118086,1751892646986,-460.0,0.00019726,2]
[370118088,1751892646995,-460.0,0.00019726,2]
[370118090,1751892647004,-460.0,0.00019726,2]
[370118092,1751892647014,-460.0,0.00019726,2]
[370118094,1751892647023,-549.21,0.00019726,2]
[370118095,1751892647032,-460.0,0.00019726,2]
[370118097,1751892647042,-224.73,0.00019726,2]
[370118100,1751892647051,-460.0,0.00019726,2]
[370118102,1751892647061,-276.01,0.00019726,2]
[370118104,1751892647070,-460.0,0.00019726,2]
[370118106,1751892647079,-460.0,0.00019726,2]
[370118108,1751892647088,-460.0,0.00019726,2]
[370118109,1751892647098,-562.0,0.00019726,2]
[370118112,1751892647107,-460.0,0.00019726,2]
[370118114,1751892647116,-460.0,0.00019726,2]
[370118115,1751892647128,-460.0,0.00019726,2]
[370118117,1751892647138,-371.58,0.00019726,2]
[370118119,1751892647147,-517.0,0.00019726,2]
[370118121,1751892647156,-569.77,0.00019726,2]
[370118124,1751892647166,-746.95,0.00019726,2]
[370118125,1751892647175,-460.0,0.00019726,2]
[370118128,1751892647185,-460.0,0.00019726,2]
[370118130,1751892647193,-549.8,0.00019726,2]
[370118132,1751892647203,-460.0,0.00019726,2]
[370118133,1751892647212,-460.0,0.00019726,2]
[370118135,1751892647221,-460.0,0.00019726,2]
[370118138,1751892647231,-460.0,0.00019726,2]
[370118140,1751892647240,-460.0,0.00019726,2]
[370118142,1751892647249,-180.35,0.00019726,2]
[370118143,1751892647258,-566.77,0.00019726,2]
[370118146,1751892647267,-586.33,0.00019726,2]
[370118147,1751892647277,-460.0,0.00019726,2]
[370118149,1751892647286,-460.0,0.00019726,2]
[370118151,1751892647295,-460.0,0.00019726,2]
[370118153,1751892647304,-460.0,0.00019726,2]
[370118155,1751892647313,-460.0,0.00019726,2]
[370118157,1751892647322,-460.0,0.00019726,2]
[370118159,1751892647331,-460.0,0.00019726,2]
[370118161,1751892647341,-460.0,0.00019726,2]
[370118163,1751892647350,-460.0,0.00019726,2]
[370118165,1751892647359,-460.0,0.00019726,2]
[370118168,1751892647368,-460.0,0.00019726,2]
[370118170,1751892647378,-460.0,0.00019726,2]
[370118171,1751892647387,-460.0,0.00019726,2]
[370118173,1751892647396,-460.0,0.00019726,2]
[370118175,1751892647405,-405.99,0.00019726,2]
[370118177,1751892647415,-460.0,0.00019726,2]
[370118180,1751892647424,-586.44,0.00019726,2]
[370118181,1751892647433,-460.0,0.00019726,2]
[370118184,1751892647443,-460.0,0.00019726,2]
[370118185,1751892647453,-460.0,0.00019726,2]
[370118187,1751892647462,-460.0,0.00019726,2]
[370118190,1751892647472,-460.0,0.00019726,2]
[370118191,1751892647481,-460.0,0.00019726,2]
[370118193,1751892647490,-460.0,0.00019726,2]
[370118195,1751892647500,-460.0,0.00019726,2]
[370118198,1751892647509,-460.0,0.00019726,2]
[370118199,1751892647519,-460.0,0.00019726,2]
[370118202,1751892647528,-460.0,0.00019726,2]
[370118204,1751892647537,-460.0,0.00019726,2]
[370118206,1751892647546,-460.0,0.00019726,2]
[370118207,1751892647555,-460.0,0.00019726,2]
[370118209,1751892647565,-460.0,0.00019726,2]
[370118211,1751892647574,-460.0,0.00019726,2]
[370118213,1751892647584,-460.0,0.00019726,2]
[370118215,1751892647593,-167.75,0.00019726,2]
[370118217,1751892647602,-600.14002683,0.00019726,2]
[370118219,1751892647611,-460.0,0.00019726,2]
[370118222,1751892647621,-957.0,0.00019753,2]
[370118223,1751892647630,-957.0,0.00019781,2]
[370118226,1751892647640,-976.17210654,0.00019808,2]
[370118228,1751892647649,-160.0,0.00019822,2]
[370118230,1751892647659,-12584.46609586,0.00019822,2]
[370118232,1751892647668,-848.27993403,0.00019822,2]
[370118234,1751892647677,-837.79946008,0.00019822,2]
[370118235,1751892647686,-215.21338352,0.00019822,2]
[370118238,1751892647695,-160.0,0.00019822,2]
[370118239,1751892647705,-160.0,0.00019822,2]
[370118242,1751892647714,-160.0,0.00019822,2]
[370118244,1751892647723,-214.06929976,0.00019822,2]
[370118246,1751892647732,-230.48668418,0.00019822,2]
[370118248,1751892647742,-160.0,0.00019822,2]
[370118249,1751892647752,-160.0,0.00019822,2]
[370118252,1751892647761,-160.0,0.00019822,2]
[370118254,1751892647771,-407.31476207,0.00019894,2]
[370118255,1751892647780,-1629.25904827,0.00019894,2]
[370118258,1751892647789,-3662.16702576,0.00019894,2]
[370118260,1751892647798,-214.71706166,0.000199,2]
[370118261,1751892647807,-460.0,0.0002,2]
[370118264,1751892647817,-460.0,0.0002,2]
[370118266,1751892647827,-460.0,0.0002,2]
[370118268,1751892647835,-460.0,0.0002,2]
[370118270,1751892647845,-168.07,0.0002,2]
[370118271,1751892647854,-336.49,0.0002,2]
[370118274,1751892647864,-460.0,0.0002,2]
[370118276,1751892647873,-460.0,0.0002,2]
[370118277,1751892647882,-460.0,0.0002,2]
[370118279,1751892647892,-452.62538625,0.0002,2]
[370118281,1751892647901,-338.59,0.0002,2]
[370118283,1751892647910,-460.0,0.0002,2]
[370118285,1751892647919,-1118.01,0.0002,2]
[370118287,1751892647928,-496.64,0.0002,2]
[370118290,1751892647938,-163.12,0.0002,2]
[370118292,1751892647948,-240.61,0.0002,2]
[370118294,1751892647956,-460.0,0.0002,2]
[370118296,1751892647965,-460.0,0.0002,2]
[370118298,1751892647975,-1494.48,0.0002,2]
[370118300,1751892647987,-460.0,0.0002,2]
[370118302,1751892647997,-460.0,0.0002,2]
[370118304,1751892648006,-460.0,0.0002,2]
[370118306,1751892648015,-460.0,0.0002,2]
[370118308,1751892648025,-460.0,0.0002,2]
[370118310,1751892648035,-576.67,0.0002,2]
[370118311,1751892648045,-455.0,0.0002,2]
[370118313,1751892648055,-460.0,0.0002,2]
[370118315,1751892648067,-460.0,0.0002,2]
[370118317,1751892648077,-746.95,0.0002,2]
[370118319,1751892648086,-460.0,0.0002,2]
[370118321,1751892648096,-460.0,0.0002,2]
[370118323,1751892648106,-460.0,0.0002,2]
[370118326,1751892648118,-460.0,0.0002,2]
[370118328,1751892648129,-460.0,0.0002,2]
[370118330,1751892648139,-460.0,0.0002,2]
[370118332,1751892648148,-566.77,0.0002,2]
[370118334,1751892648158,-460.0,0.0002,2]
[370118336,1751892648168,-496.15646281,0.0002,2]
[370118338,1751892648177,-460.0,0.0002,2]
[370118340,1751892648187,-460.0,0.0002,2]
[370118342,1751892648196,-532.27,0.0002,2]
[370118344,1751892648205,-339.5142568,0.0002,2]
[370118346,1751892648215,-460.0,0.0002,2]
[370118348,1751892648224,-460.0,0.0002,2]
[370118350,1751892648234,-276.04,0.0002,2]
[370118352,1751892648244,-460.0,0.0002,2]
[370118354,1751892648254,-460.0,0.0002,2]
[370118356,1751892648264,-460.0,0.0002,2]
[370118358,1751892648273,-460.0,0.0002,2]
[370118360,1751892648283,-537.61036616,0.0002,2]
[370118362,1751892648292,-563.57875554,0.0002,2]
[370118364,1751892648301,-460.0,0.0002,2]
[370118366,1751892648311,-460.0,0.0002,2]
[370118368,1751892648320,-460.0,0.0002,2]
[370118370,1751892648330,-460.0,0.0002,2]
[370118372,1751892648339,-460.0,0.0002,2]
[370118374,1751892648348,-460.0,0.0002,2]
[370118376,1751892648358,-205.45,0.0002,2]
[370118378,1751892648367,-250.94743549,0.0002,2]
[370118380,1751892648377,-460.0,0.0002,2]
[370118382,1751892648386,-359.08,0.0002,2]
[370118384,1751892648396,-460.0,0.0002,2]
[370118385,1751892648406,-273.78,0.0002,2]
[370118388,1751892648416,-502.0,0.0002,2]
[370118390,1751892648425,-460.0,0.0002,2]
[370118392,1751892648434,-460.0,0.0002,2]
[370118394,1751892648443,-460.0,0.0002,2]
[370118395,1751892648453,-300.0,0.00020016,2]
[370118397,1751892648462,-214.71706142,0.00020107,2]
[370118400,1751892648472,-501.8141145,0.000202,2]
[370118401,1751892648482,-500.0,0.000202,2]
[370118403,1751892648492,-1000.0,0.00020268,2]
[370118405,1751892648502,-285.96,0.00020273,2]
[370118408,1751892648512,-460.0,0.00020273,2]
[370118409,1751892648521,-460.0,0.00020273,2]
[370118412,1751892648530,-1118.01,0.00020273,2]
[370118414,1751892648540,-426.07,0.00020273,2]
[370118415,1751892648549,-1494.48,0.00020273,2]
[370118417,1751892648562,-460.0,0.00020273,2]
[370118419,1751892648572,-460.0,0.00020273,2]
[370118421,1751892648582,-460.0,0.00020273,2]
[370118424,1751892648591,-460.0,0.00020273,2]
[370118426,1751892648601,-460.0,0.00020273,2]
[370118428,1751892648610,-746.95,0.00020273,2]
[370118429,1751892648619,-460.0,0.00020273,2]
[370118431,1751892648629,-460.0,0.00020273,2]
[370118434,1751892648638,-460.0,0.00020273,2]
[370118435,1751892648647,-460.0,0.00020273,2]
[370118437,1751892648656,-460.0,0.00020273,2]
[370118439,1751892648665,-460.0,0.00020273,2]
[370118441,1751892648675,-566.77,0.00020273,2]
[370118443,1751892648684,-460.0,0.00020273,2]
[370118445,1751892648694,-460.0,0.00020273,2]
[370118448,1751892648703,-406.69,0.00020273,2]
[370118450,1751892648713,-460.0,0.00020273,2]
[370118452,1751892648722,-460.0,0.00020273,2]
[370118465,1751892648843,-544.12,0.00020273,2]
[370118467,1751892648854,-460.0,0.00020273,2]
[370118469,1751892648864,-460.0,0.00020273,2]
[370118471,1751892648874,-460.0,0.00020273,2]
[370118473,1751892648884,-460.0,0.00020273,2]
[370118475,1751892648893,-340.56769265,0.00020273,2]
[370118477,1751892648903,-460.0,0.00020273,2]
[370118479,1751892648912,-409.84,0.00020273,2]
[370118481,1751892648922,-295.47,0.00020273,2]
[370118483,1751892648932,-460.0,0.00020273,2]
[370118485,1751892648942,-214.71706142,0.00020314,3]
[370118487,1751892648952,-941.76357717,0.00020509,2]
[370118489,1751892648961,-214.71706142,0.00020521,3]
[370118491,1751892648971,-460.0,0.00020547,2]
[370118493,1751892648981,-604.74,0.00020547,2]
[370118495,1751892648992,-1118.01,0.00020547,2]
[370118497,1751892649002,-1494.48,0.00020547,2]
[370118499,1751892649011,-460.0,0.00020547,2]
[370118501,1751892649021,-460.0,0.00020547,2]
[370118503,1751892649032,-460.0,0.00020547,2]
[370118505,1751892649041,-460.0,0.00020547,2]
[370118507,1751892649051,-746.95,0.00020547,2]
[370118509,1751892649062,-460.0,0.00020547,2]
[370118511,1751892649071,-460.0,0.00020547,2]
[370118513,1751892649081,-460.0,0.00020547,2]
[370118515,1751892649090,-275.98,0.00020547,2]
[370118517,1751892649100,-460.0,0.00020547,2]
[370118519,1751892649109,-460.0,0.00020547,2]
[370118521,1751892649119,-566.77,0.00020547,2]
[370118523,1751892649128,-460.0,0.00020547,2]
[370118525,1751892649137,-460.0,0.00020547,2]
[370118527,1751892649147,-460.0,0.00020547,2]
[370118529,1751892649157,-460.0,0.00020547,2]
[370118531,1751892649169,-531.73,0.00020547,2]
[370118533,1751892649179,-460.0,0.00020547,2]
[370118535,1751892649189,-460.0,0.00020547,2]
[370118537,1751892649198,-460.0,0.00020547,2]
[370118539,1751892649208,-460.0,0.00020547,2]
[370118541,1751892649218,-460.0,0.00020547,2]
[370118543,1751892649227,-666.0,0.00020551,2]
[370118545,1751892649237,-500.0,0.00020554,2]
[370118547,1751892649246,-500.0,0.00020554,2]
[370118549,1751892649255,-500.0,0.00020554,2]
[370118551,1751892649265,-500.0,0.00020554,2]
[370118553,1751892649274,-508.31206158,0.00020554,2]
[370118555,1751892649284,-500.0,0.00020554,2]
[370118557,1751892649294,-500.0,0.00020554,2]
[370118559,1751892649304,-500.0,0.00020554,2]
[370118561,1751892649313,-500.46494259,0.00020554,2]
[370118585,1751892649532,-500.0,0.00020554,2]
[370118587,1751892649541,-501.01682281,0.00020554,2]
[370118589,1751892649551,-500.0,0.00020554,2]
[370118591,1751892649560,-500.0,0.00020554,2]
[370118593,1751892649569,-500.0,0.00020554,2]
[370118595,1751892649578,-500.0,0.00020554,2]
[370118597,1751892649587,-500.0,0.00020554,2]
[370118599,1751892649596,-500.0,0.00020554,2]
[370118601,1751892649605,-1611.19,0.000206,2]
[370118603,1751892649614,-433.861,0.00020636,2]
[370118605,1751892649624,-214.71706142,0.00020728,3]
[370118607,1751892649633,-1112.39333012,0.00020748,2]
[370118609,1751892649642,-152.82,0.00020821,2]
[370118611,1751892649651,-1118.01,0.00020821,2]
[370118613,1751892649660,-1494.48,0.00020821,2]
[370118615,1751892649669,-460.0,0.00020821,2]
[370118617,1751892649679,-460.0,0.00020821,2]
[370118619,1751892649689,-460.0,0.00020821,2]
[370118621,1751892649698,-460.0,0.00020821,2]
[370118623,1751892649707,-746.95,0.00020821,2]
[370118625,1751892649717,-460.0,0.00020821,2]
[370118627,1751892649726,-460.0,0.00020821,2]
[370118629,1751892649735,-361.8,0.00020821,2]
[370118631,1751892649744,-460.0,0.00020821,2]
[370118633,1751892649754,-460.0,0.00020821,2]
[370118635,1751892649764,-566.77,0.00020821,2]
[370118637,1751892649773,-460.0,0.00020821,2]
[370118639,1751892649783,-460.0,0.00020821,2]
[370118641,1751892649792,-460.0,0.00020821,2]
[370118643,1751892649801,-460.0,0.00020821,2]
[370118645,1751892649811,-460.0,0.00020821,2]
[370118647,1751892649820,-460.0,0.00020821,2]
[370118649,1751892649829,-460.0,0.00020821,2]
[370118651,1751892649838,-460.0,0.00020821,2]
[370118653,1751892649848,-460.0,0.00020821,2]
[370118655,1751892649857,-189.449108,0.00020902,2]
[370118657,1751892649867,-214.71706142,0.00020934,4]
[370118659,1751892649876,-189.449108,0.00020998,2]
[370118661,1751892649885,-189.449108,0.00021094,2]
[370118663,1751892649894,-1118.01,0.00021095,2]
[370118665,1751892649903,-1494.48,0.00021095,2]
[370118667,1751892649912,-460.0,0.00021095,2]
[370118669,1751892649922,-171.54,0.00021095,2]
[370118671,1751892649931,-460.0,0.00021095,2]
[370118673,1751892649940,-197.48,0.00021095,2]
[370118675,1751892649949,-746.95,0.00021095,2]
[370118677,1751892649959,-460.0,0.00021095,2]
[370118679,1751892649968,-460.0,0.00021095,2]
[370118681,1751892649978,-460.0,0.00021095,2]
[370118683,1751892649992,-460.0,0.00021095,2]
[370118685,1751892650001,-566.77,0.00021095,2]
[370118687,1751892650010,-460.0,0.00021095,2]
[370118689,1751892650019,-460.0,0.00021095,2]
[370118691,1751892650030,-460.0,0.00021095,2]
[370118693,1751892650039,-460.0,0.00021095,2]
[370118695,1751892650049,-460.0,0.00021095,2]
[370118697,1751892650058,-460.0,0.00021095,2]
[370118699,1751892650068,-460.0,0.00021095,2]
[370118701,1751892650078,-151.0,0.00021095,2]
[370118703,1751892650087,-460.0,0.00021095,2]
[370118705,1751892650096,-460.0,0.00021095,2]
[370118707,1751892650107,-1000.0,0.00021102,2]
[370118709,1751892650116,-1000.0,0.00021102,2]
[370118711,1751892650126,-1000.0,0.00021102,2]
[370118713,1751892650135,-334.476543,0.00021102,2]
[370118715,1751892650144,-1000.0,0.00021102,2]
[370118717,1751892650155,-1000.0,0.00021102,2]
[370118719,1751892650164,-1000.0,0.00021102,2]
[370118721,1751892650173,-1000.0,0.00021102,2]
[370118723,1751892650183,-277.42294643,0.00021102,2]
[370118725,1751892650192,-883.50705906,0.00021102,2]
[370118727,1751892650201,-1000.0,0.00021102,2]
[370118729,1751892650211,-214.71706142,0.00021141,4]
[370118731,1751892650220,-189.449108,0.00021189,2]
[370118733,1751892650230,-189.449108,0.00021285,2]
[370118735,1751892650239,-214.71706142,0.00021348,5]
[370118737,1751892650248,-1118.01,0.00021369,2]
[370118739,1751892650257,-1494.48,0.00021369,2]
[370118741,1751892650267,-460.0,0.00021369,2]
[370118743,1751892650276,-460.0,0.00021369,2]
[370118746,1751892650286,-746.95,0.00021369,2]
[370118748,1751892650295,-460.0,0.00021369,2]
[370118750,1751892650304,-460.0,0.00021369,2]
[370118752,1751892650313,-460.0,0.00021369,2]
[370118754,1751892650323,-460.0,0.00021369,2]
[370118756,1751892650332,-566.77,0.00021369,2]
[370118757,1751892650342,-460.0,0.00021369,2]
[370118760,1751892650351,-460.0,0.00021369,2]
[370118762,1751892650360,-460.0,0.00021369,2]
[370118764,1751892650370,-460.0,0.00021369,2]
[370118765,1751892650379,-460.0,0.00021369,2]
[370118768,1751892650388,-460.0,0.00021369,2]
[370118769,1751892650397,-460.0,0.00021369,2]
[370118771,1751892650407,-467.25,0.00021369,2]
[370118774,1751892650416,-460.0,0.00021369,2]
[370118776,1751892650426,-189.449108,0.00021381,2]
[370118777,1751892650435,-189.449108,0.00021476,2]
[370118780,1751892650444,-214.71706142,0.00021555,5]
[370118782,1751892650453,-189.449108,0.00021572,2]
[370118783,1751892650463,-1118.01,0.00021643,2]
[370118786,1751892650472,-1494.48,0.00021643,2]
[370118788,1751892650484,-460.0,0.00021643,2]
[370118790,1751892650493,-460.0,0.00021643,2]
[370118791,1751892650502,-746.95,0.00021643,2]
[370118793,1751892650512,-460.0,0.00021643,2]
[370118796,1751892650522,-460.0,0.00021643,2]
[370118797,1751892650531,-578.48,0.00021643,2]
[370118799,1751892650540,-460.0,0.00021643,2]
[370118801,1751892650550,-566.77,0.00021643,2]
[370118803,1751892650559,-460.0,0.00021643,2]
[370118805,1751892650568,-460.0,0.00021643,2]
[370118807,1751892650578,-460.0,0.00021643,2]
[370118809,1751892650587,-460.0,0.00021643,2]
[370118811,1751892650596,-460.0,0.00021643,2]
[370118813,1751892650605,-460.0,0.00021643,2]
[370118815,1751892650615,-460.0,0.00021643,2]
[370118817,1751892650625,-460.0,0.00021643,2]
[370118820,1751892650634,-1500.0,0.0002165,2]
[370118822,1751892650643,-1500.0,0.0002165,2]
[370118823,1751892650652,-1050.15772205,0.0002165,2]
[370118826,1751892650662,-1500.0,0.0002165,2]
[370118828,1751892650672,-1500.0,0.0002165,2]
[370118830,1751892650681,-1041.30254671,0.0002165,2]
[370118832,1751892650691,-549.20648262,0.00021667,2]
[370118834,1751892650701,-189.449108,0.00021668,2]
[370118836,1751892650710,-214.71706142,0.00021762,5]
[370118838,1751892650719,-189.449108,0.00021763,2]
[370118840,1751892650728,-189.449108,0.00021859,2]
[370118842,1751892650737,-306.0,0.00021863,2]
[370118844,1751892650746,-1118.01,0.00021917,2]
[370118846,1751892650756,-1494.48,0.00021917,2]
[370118847,1751892650765,-425.46,0.00021917,2]
[370118850,1751892650775,-460.0,0.00021917,2]
[370118851,1751892650784,-746.95,0.00021917,2]
[370118853,1751892650794,-460.0,0.00021917,2]
[370118855,1751892650803,-460.0,0.00021917,2]
[370118857,1751892650813,-460.0,0.00021917,2]
[370118860,1751892650823,-566.77,0.00021917,2]
[370118862,1751892650832,-460.0,0.00021917,2]
[370118864,1751892650842,-460.0,0.00021917,2]
[370118865,1751892650852,-460.0,0.00021917,2]
[370118867,1751892650861,-460.0,0.00021917,2]
[370118870,1751892650870,-460.0,0.00021917,2]
[370118872,1751892650880,-460.0,0.00021917,2]
[370118873,1751892650890,-460.0,0.00021917,2]
[370118875,1751892650899,-460.0,0.00021917,2]
[370118877,1751892650909,-500.0,0.00021918,2]
[370118880,1751892650919,-500.0,0.00021918,2]
[370118881,1751892650929,-500.0,0.00021918,2]
[370118883,1751892650938,-500.0,0.00021918,2]
[370118885,1751892650948,-500.0,0.00021918,2]
[370118887,1751892650957,-274.39532931,0.00021918,2]
[370118889,1751892650967,-941.76357717,0.00021939,2]
[370118891,1751892650976,-189.449108,0.00021955,2]
[370118892,1751892650989,-214.71706142,0.00021969,6]
[370118893,1751892650999,-2620.57915585,0.00022,2]
[370118894,1751892651008,-151.0,0.00022,7]
[370118895,1751892651017,-152.770871,0.00022,7]
[370118896,1751892651028,-252.598811,0.00022036,2]
[370118897,1751892651037,-189.449108,0.0002205,2]
[370118898,1751892651047,-252.598811,0.0002213,2]
[370118899,1751892651058,-189.449108,0.00022146,2]
[370118900,1751892651067,-3067.85498606,0.00022166,2]
[370118901,1751892651078,-214.71706142,0.00022176,6]
[370118902,1751892651087,-151.0,0.00022189,7]
[370118903,1751892651097,-151.0,0.00022189,7]
[370118904,1751892651106,-151.0,0.00022189,7]
[370118905,1751892651116,-151.0,0.00022189,7]
[370118906,1751892651125,-151.0,0.00022189,7]
[370118907,1751892651134,-223.042937,0.00022189,7]
[370118908,1751892651145,-223.042937,0.00022189,7]
[370118909,1751892651154,-252.126305,0.00022189,7]
[370118910,1751892651163,-151.0,0.00022189,7]
[370118911,1751892651173,-252.126305,0.00022189,7]
[370118913,1751892651182,-151.0,0.00022189,7]
[370118915,1751892651192,-151.0,0.00022189,7]
[370118917,1751892651201,-151.0,0.00022189,7]
[370118919,1751892651210,-1118.01,0.00022191,2]
[370118921,1751892651219,-1494.48,0.00022191,2]
[370118923,1751892651228,-572.8,0.00022191,2]
[370118925,1751892651238,-746.95,0.00022191,2]
[370118927,1751892651247,-460.0,0.00022191,2]
[370118940,1751892651359,-460.0,0.00022191,2]
[370118942,1751892651369,-460.0,0.00022191,2]
[370118944,1751892651379,-566.77,0.00022191,2]
[370118946,1751892651388,-460.0,0.00022191,2]
[370118948,1751892651398,-460.0,0.00022191,2]
[370118950,1751892651407,-460.0,0.00022191,2]
[370118952,1751892651416,-572.50471894,0.00022191,2]
[370118954,1751892651425,-460.0,0.00022191,2]
[370118956,1751892651435,-460.0,0.00022191,2]
[370118958,1751892651444,-460.0,0.00022191,2]
[370118960,1751892651453,-460.0,0.00022191,2]
[370118962,1751892651462,-2000.0,0.00022198,2]
[370118964,1751892651471,-500.0,0.00022198,2]
[370118966,1751892651480,-417.77687542,0.00022198,2]
[370119001,1751892651805,-460.0,0.00019178,2]
[370119003,1751892651815,-460.0,0.00019178,2]
[370119005,1751892651825,-460.0,0.00019178,2]
[370119007,1751892651834,-460.0,0.00019178,2]
[370119009,1751892651844,-460.0,0.00019452,2]
[370119011,1751892651853,-460.0,0.00019452,2]
[370119013,1751892651862,-586.98839653,0.00022198,2]
[370119015,1751892651871,-151.0,0.00022203,7]
[370119017,1751892651881,-78.44609963,0.00022203,7]
[370119019,1751892651892,-72.55390037,0.00022203,7]
[370119021,1751892651901,-151.0,0.00022203,7]
[370119023,1751892651910,-151.0,0.00022203,7]
[370119025,1751892651919,-165.928791,0.00022203,7]
[370119027,1751892651929,-621.10729373,0.0002222,2]
[370119029,1751892651939,-252.598811,0.00022224,2]
[370119031,1751892651948,-189.449108,0.00022242,2]
[370119033,1751892651958,-252.598811,0.00022318,2]
[370119035,1751892651967,-189.449108,0.00022337,2]
[370119037,1751892651977,-309.52739336,0.00022354,2]
[370119040,1751892651995,-190.47260664,0.00022354,2]
[370119042,1751892652005,-160.02988921,0.00022354,2]
[370119044,1751892652015,-500.58992045,0.00022354,2]
[370119046,1751892652025,-500.0,0.00022354,2]
[370119048,1751892652034,-214.71706142,0.00022383,7]
[370119050,1751892652044,-153.0,0.00022411,2]
[370119052,1751892652053,-153.0,0.00022411,2]
[370119054,1751892652065,-153.0,0.00022411,2]